fUSD/lending_fUSD_20240403
["ID","MTS","AMOUNT","RATE_DAILY","PERIOD"]
[321383763,1712110242389,-835.82663998,0.0004,2]
[321383764,1712110242399,-835.82663998,0.0004,2]
[321383765,1712110242408,-835.82663998,0.0004,2]
[321383766,1712110242418,-835.82663998,0.0004,2]
[321383767,1712110242427,-835.82663998,0.0004,2]
[321383768,1712110242437,-835.82663998,0.0004,2]
[321383769,1712110242447,-835.82663998,0.0004,2]
[321383770,1712110242456,-835.82663998,0.0004,2]
[321383771,1712110242465,-835.82663998,0.0004,2]
[321383772,1712110242475,-835.82663998,0.0004,2]
[321383773,1712110242485,-835.82663998,0.0004,2]
[321383774,1712110242494,-835.82663998,0.0004,2]
[321383775,1712110242504,-835.82663998,0.0004,2]
[321383776,1712110242514,-835.82663998,0.0004,2]
[321383777,1712110242523,-835.82663998,0.0004,2]
[321383778,1712110242534,-835.82663998,0.0004,2]
[321383779,1712110242543,-835.82663998,0.0004,2]
[321383780,1712110242553,-835.82663998,0.0004,2]
[321383781,1712110242563,-835.82663998,0.0004,2]
[321383782,1712110242572,-835.82663998,0.0004,2]
[321383783,1712110242581,-835.82663998,0.0004,2]
[321383784,1712110242590,-835.82663998,0.0004,2]
[321383785,1712110242603,-835.82663998,0.0004,2]
[321383786,1712110242612,-835.82663998,0.0004,2]
[321383787,1712110242622,-835.82663998,0.0004,2]
[321383788,1712110242631,-835.82663998,0.0004,2]
[321383789,1712110242641,-835.82663998,0.0004,2]
[321383790,1712110242650,-835.82663998,0.0004,2]
[321383791,1712110242659,-835.82663998,0.0004,2]
[321383792,1712110242669,-835.82663998,0.0004,2]
[321383793,1712110242678,-835.82663998,0.0004,2]
[321383794,1712110242688,-835.82663998,0.0004,2]
[321383795,1712110242698,-835.82663998,0.0004,2]
[321383796,1712110242707,-835.82663998,0.0004,2]
[321383797,1712110242716,-835.82663998,0.0004,2]
[321383798,1712110242725,-835.82663998,0.0004,2]
[321383799,1712110242734,-835.82663998,0.0004,2]
[321383800,1712110242744,-835.82663998,0.0004,2]
[321383801,1712110242753,-835.82663998,0.0004,2]
[321383802,1712110242763,-835.82663998,0.0004,2]
[321383803,1712110242777,-835.82663998,0.0004,2]
[321383804,1712110242786,-835.82663998,0.0004,2]
[321383805,1712110242796,-835.82663998,0.0004,2]
[321383806,1712110242805,-835.82663998,0.0004,2]
[321383807,1712110242816,-835.82663998,0.0004,2]
[321383808,1712110242825,-835.82663998,0.0004,2]
[321383809,1712110242834,-835.82663998,0.0004,2]
[321383810,1712110242844,-835.82663998,0.0004,2]
[321383812,1712110242855,-835.82663998,0.0004,2]
[321383813,1712110242864,-835.82663998,0.0004,2]
[321383815,1712110242874,-835.82663998,0.0004,2]
[321383817,1712110242883,-835.82663998,0.0004,2]
[321383819,1712110242893,-835.82663998,0.0004,2]
[321383820,1712110242903,-835.82663998,0.0004,2]
[321383821,1712110242912,-500.0,0.00040365,20]
[321383822,1712110242922,-150.0,0.00040663,2]
[321383823,1712110242931,-226.46,0.00040685,2]
[321383824,1712110242942,-1063.9,0.00040767,15]
[321383825,1712110242952,-1196.0,0.00040858,2]
[321383826,1712110242962,-3484.983,0.00040858,2]
[321383827,1712110242972,-2456.0,0.00040858,2]
[321383828,1712110242982,-43082.0,0.00040858,2]
[321383829,1712110242991,-150.0,0.00040858,2]
[321383830,1712110243001,-950.0,0.00041,3]
[321383831,1712110243011,-183.0,0.00041096,2]
[321383832,1712110243020,-3000.0,0.000411,2]
[321383833,1712110243030,-377.02,0.000412,7]
[321383834,1712110243040,-1013.8,0.000412,7]
[321383835,1712110243049,-733.904,0.00041275,2]
[321383836,1712110243058,-964.0,0.00041275,2]
[321383837,1712110243067,-459.0,0.00041275,2]
[321383838,1712110243076,-1270.0,0.00041275,2]
[321383839,1712110243086,-804.0,0.00041275,2]
[321383840,1712110243097,-279.0,0.00041275,2]
[321383841,1712110243107,-434.0,0.00041275,2]
[321383842,1712110243116,-606.0,0.00041275,2]
[321383843,1712110243126,-1466.0,0.00041275,2]
[321383844,1712110243135,-2989.0,0.00041275,2]
[321383845,1712110243145,-150.0,0.00041275,2]
[321383846,1712110243154,-150.0,0.00041275,2]
[321383847,1712110243164,-843.066,0.00041275,2]
[321383848,1712110243173,-397.0,0.00041275,2]
[321383849,1712110243182,-1631.0,0.00041275,2]
[321383850,1712110243192,-2430.0,0.00041275,2]
[321383851,1712110243202,-206.0,0.00041275,2]
[321383852,1712110243211,-214.0,0.00041275,2]
[321383853,1712110243220,-150.0,0.00041528,2]
[321383854,1712110243230,-152.0,0.00041537,3]
[321383855,1712110243239,-1189.49844516,0.00041899,14]
[321383856,1712110243249,-1189.49844511,0.00041899,14]
[321383857,1712110243259,-1189.49844511,0.00041899,14]
[321383858,1712110243269,-1189.49844511,0.00041899,14]
[321383859,1712110243279,-1189.49844511,0.00041899,14]
[321383860,1712110243289,-1189.49844511,0.00041899,14]
[321383861,1712110243299,-1745.28933724,0.00041981,10]
[321383862,1712110243308,-1828.54434568,0.00041982,10]
[321383863,1712110243318,-3352.54061562,0.00041982,4]
[321383864,1712110243327,-389.32561534,0.00041982,15]
[321383865,1712110243336,-470.8374394,0.00042,120]
[321383866,1712110243346,-8767.71778012,0.00042,2]
[321383867,1712110243356,-1777.2,0.00042,7]
[321383868,1712110243365,-1303.37965665,0.0004201,2]
[321383869,1712110243375,-1000.0,0.00042107,2]
[321383870,1712110243384,-970.32,0.00042171,2]
[321383871,1712110243393,-1164.28924433,0.00042216,4]
[321383872,1712110243403,-1617.0,0.00042216,30]
[321383873,1712110243413,-157.53536455,0.00042279,15]
[321383874,1712110243423,-152.0,0.00042357,4]
[321383875,1712110243433,-150.0,0.00042394,2]
[321383876,1712110243442,-1000.0,0.00042603,30]
[321383877,1712110243452,-500.0,0.00042628,20]
[321383878,1712110243461,-1189.49844511,0.00042671,14]
[321383879,1712110243471,-200.58693421,0.0004269,8]
[321383880,1712110243666,-152.13336314,0.00042794,58]
[321383881,1712110243676,-300.0,0.0004289,30]
[321383882,1712110243686,-151.0,0.00042899,14]
[321383883,1712110243696,-151.0,0.00042899,14]
[321383884,1712110243705,-163588.57170846,0.00042904,2]
[321383885,1712110243716,-117192.24178954,0.00042904,2]
[321383886,1712110243727,-1210.0,0.00042904,2]
[321383887,1712110243736,-338.15150351,0.00042904,2]
[321383888,1712110243746,-2919.79322307,0.00042904,2]
[321383889,1712110243755,-179.36207103,0.00042904,7]
[321383890,1712110243766,-3101.89000583,0.00042904,2]
[321383891,1712110243778,-199.30020933,0.00042904,2]
[321383892,1712110243789,-1000.09149832,0.00042904,2]
[321383893,1712110243799,-12112.70864019,0.00042904,2]
[321383894,1712110243809,-10390.14718326,0.00042904,2]
[321383895,1712110243819,-5034.71535865,0.00042904,2]
[321383896,1712110243828,-2654.70858624,0.00042904,2]
[321383897,1712110243838,-2383.40364203,0.00042904,2]
[321383898,1712110243848,-5444.89021339,0.00042904,2]
[321383899,1712110243857,-2600.30787476,0.00042904,2]
[321383900,1712110243868,-133375.69499817,0.00042904,2]
[321383901,1712110243877,-3153.88908383,0.00042904,2]
[321383902,1712110243887,-10115.89158449,0.00042904,2]
[321383903,1712110243897,-159.24259359,0.00042904,2]
[321383904,1712110243907,-22141.32121019,0.00042904,2]
[321383905,1712110243917,-14693.26406619,0.00042904,2]
[321383906,1712110243927,-7494.93921007,0.00042904,2]
[321383907,1712110243936,-1037.69638536,0.00042904,2]
[321383908,1712110243945,-5795.957112,0.00042904,2]
[321383909,1712110243956,-71984.77227404,0.00042904,2]
[321383910,1712110243965,-844.58261289,0.00042904,2]
[321383911,1712110243975,-1015.08285317,0.00042904,2]
[321383912,1712110243984,-185.3802717,0.00042904,2]
[321383913,1712110243994,-88798.83493149,0.00042904,2]
[321383914,1712110244003,-8966.03188531,0.00042904,2]
[321383915,1712110244013,-1273.24431412,0.00042904,2]
[321383916,1712110244023,-4800.28145748,0.00042904,2]
[321383917,1712110244033,-5328.65663633,0.00042904,2]
[321383918,1712110244043,-24433.36841512,0.00042904,2]
[321383919,1712110244052,-478.39628654,0.00042904,2]
[321383920,1712110244061,-22028.98682,0.00042904,2]
[321383921,1712110244070,-12468.85119025,0.00042904,2]
[321383922,1712110244080,-1866.57530205,0.00042904,2]
[321383923,1712110244089,-643.0,0.00042904,2]
[321383924,1712110244099,-942.37101421,0.00042904,2]
[321383925,1712110244109,-9039.97543873,0.00042904,2]
[321383926,1712110244119,-556.61570855,0.00042904,2]
[321383927,1712110244128,-1785.42885333,0.00042904,2]
[321383928,1712110244137,-16274.31318571,0.00042904,2]
[321383929,1712110244146,-169.6118067,0.00042904,2]
[321383930,1712110244156,-7030.90160556,0.00042904,2]
[321383931,1712110244165,-500.0,0.00042904,2]
[321383932,1712110244174,-550.0,0.00042904,2]
[321383933,1712110244183,-979.29993071,0.00042904,2]
[321383934,1712110244192,-10407.2202442,0.00042904,2]
[321383935,1712110244201,-500.0,0.00042904,2]
[321383936,1712110244211,-164712.70657297,0.00042904,2]
[321383937,1712110244220,-14531.02684575,0.00042904,2]
[321383938,1712110244229,-6000.0,0.00042904,2]
[321383939,1712110244239,-1004.13222411,0.00042904,2]
[321383940,1712110244248,-10312.4958606,0.00042904,2]
[321383941,1712110244257,-14221.88324322,0.00042904,2]
[321383942,1712110244266,-547.47525671,0.00042904,2]
[321383943,1712110244275,-150.0,0.00042904,2]
[321383944,1712110244285,-6513.26020797,0.00042904,2]
[321383945,1712110244294,-634.94232582,0.00042904,2]
[321383946,1712110244304,-608.99474061,0.00042904,2]
[321383947,1712110244314,-208.81602519,0.00042904,2]
[321383948,1712110244324,-149168.8533769,0.00042904,2]
[321383949,1712110244334,-424941.24667888,0.00042904,7]
[321383950,1712110244344,-436.90124008,0.00042904,2]
[321383951,1712110244568,-20657.81205445,0.00042904,2]
[321383952,1712110244579,-1037.25920075,0.00042904,2]
[321383953,1712110244588,-2500.0,0.00042904,2]
[321383954,1712110244598,-563.30598829,0.00042904,2]
[321383955,1712110244607,-27028.83121728,0.00042904,2]
[321383956,1712110244617,-2313.97517764,0.00042904,2]
[321383957,1712110244626,-3776.52168041,0.00042904,2]
[321383958,1712110244636,-234.02174598,0.00042904,2]
[321383959,1712110244645,-68136.86410149,0.00042904,2]
[321383960,1712110244654,-1597.84021228,0.00042904,2]
[321383961,1712110244664,-524.03350757,0.00042904,2]
[321383962,1712110244673,-405967.12358644,0.00042904,2]
[321383963,1712110244683,-10202.22792338,0.00042904,2]
[321383964,1712110244693,-887.13764828,0.00042904,2]
[321383965,1712110244702,-160392.0,0.00042904,4]
[321383966,1712110244711,-26813.13253337,0.00042904,2]
[321383967,1712110244721,-9265.97019733,0.00042904,2]
[321383968,1712110244732,-468.17560273,0.00042904,2]
[321383969,1712110244742,-384.75447235,0.00042904,2]
[321383970,1712110244751,-240.28754514,0.00042904,2]
[321383971,1712110244760,-7681.89908263,0.00042904,7]
[321383972,1712110244774,-14795.58944341,0.00042904,2]
[321383973,1712110244783,-316.68333762,0.00042904,2]
[321383974,1712110244793,-21359.65975953,0.00042904,2]
[321383975,1712110244802,-1764.99836856,0.00042904,2]
[321383976,1712110244813,-532.49601998,0.00042904,2]
[321383977,1712110244823,-540.09961427,0.00042904,7]
[321383978,1712110244833,-4899.92585304,0.00042904,2]
[321383979,1712110244843,-367.00972938,0.00042904,5]
[321383980,1712110244854,-354.22389253,0.00042904,2]
[321383981,1712110244864,-592.14621856,0.00042904,2]
[321383982,1712110244874,-9490.91327833,0.00042904,2]
[321383983,1712110244884,-288857.38560105,0.00042904,2]
[321383984,1712110244894,-155.4904952,0.00042904,2]
[321383985,1712110244904,-8412.43530555,0.00042904,7]
[321383986,1712110244913,-1786.24071918,0.00042904,2]
[321383987,1712110244922,-337.35937306,0.00042904,2]
[321383988,1712110244931,-594.76918364,0.00042904,20]
[321383989,1712110244940,-5032.99215443,0.00042904,2]
[321383990,1712110244949,-15147.82445363,0.00042904,4]
[321383991,1712110244959,-407.0,0.00042904,2]
[321383992,1712110244968,-11512.27160819,0.00042904,2]
[321383993,1712110244977,-13000.0,0.00042904,2]
[321383994,1712110244986,-13655.90098274,0.00042904,2]
[321383995,1712110244995,-1004.52980344,0.00042904,2]
[321383996,1712110245004,-214.07977406,0.00042904,2]
[321383997,1712110245013,-636.69041891,0.00042904,2]
[321383998,1712110245022,-1003.65638298,0.00042904,2]
[321383999,1712110245031,-150.0,0.00042904,2]
[321384000,1712110245040,-150.0,0.00042904,2]
[321384001,1712110245050,-152.96,0.00042904,2]
[321384002,1712110245059,-1748.413585,0.00042904,2]
[321384003,1712110245069,-4892.80622135,0.00042997,2]
[321384004,1712110245078,-83000.0,0.00043,10]
[321384005,1712110245087,-1000.0,0.00043,3]
[321384006,1712110245098,-1625.69480566,0.0004302,2]
[321384007,1712110245108,-152.0,0.00043176,5]
[321384008,1712110245117,-150.0,0.00043259,2]
[321384009,1712110245127,-1063.9,0.00043507,15]
[321384010,1712110245136,-3000.0,0.000438,2]
[321384011,1712110245146,-1013.8,0.000438,7]
[321384012,1712110245156,-290.25,0.00043836,2]
[321384013,1712110245165,-1196.0,0.00043858,2]
[321384014,1712110245174,-2456.0,0.00043858,2]
[321384015,1712110245185,-43082.0,0.00043858,2]
[321384016,1712110245195,-150.0,0.00043858,2]
[321384017,1712110245205,-152.0,0.00043995,6]
[321384018,1712110245214,-12625.0,0.00044,2]
[321384019,1712110245224,-16002.88317071,0.00044,2]
[321384020,1712110245233,-60000.0,0.00044,4]
[321384021,1712110245243,-151.0,0.00044,14]
[321384022,1712110245252,-150.0,0.00044124,2]
[321384023,1712110245262,-171.952,0.00044275,2]
[321384024,1712110245272,-442.633,0.00044275,2]
[321384025,1712110245282,-804.0,0.00044275,2]
[321384026,1712110245291,-434.0,0.00044275,2]
[321384027,1712110245302,-315.204,0.00044275,2]
[321384028,1712110245313,-150.0,0.00044275,2]
[321384029,1712110245322,-155.961,0.00044275,2]
[321384030,1712110245331,-1248.331,0.00044275,2]
[321384031,1712110245340,-206.0,0.00044275,2]
[321384032,1712110245351,-214.0,0.00044275,2]
[321384033,1712110245363,-970.32,0.00044435,2]
[321384034,1712110245372,-152.0,0.00044815,7]
[321384035,1712110245382,-993.46903431,0.0004489,10]
[321384036,1712110245391,-500.0,0.00044892,30]
[321384037,1712110245400,-5169.63145729,0.0004498,2]
[321384038,1712110245410,-150.0,0.00044989,2]
[321384039,1712110245420,-328.38424403,0.00045,4]
[321384040,1712110245430,-10415.06202819,0.00045,5]
[321384041,1712110245440,-170.22577968,0.00045,7]
[321384042,1712110245450,-70858.73424473,0.00045,2]
[321384043,1712110245459,-18637.57288454,0.00045,5]
[321384044,1712110245469,-704.46813212,0.00045,30]
[321384045,1712110245480,-130693.08527069,0.00045,2]
[321384046,1712110245489,-1050.0,0.00045,3]
[321384047,1712110245498,-377.02,0.000451,7]
[321384048,1712110245508,-226.46,0.00045205,2]
[321384049,1712110245518,-1777.2,0.000453,7]
[321384050,1712110245529,-152.0,0.00045634,8]
[321384051,1712110245540,-1189.49844511,0.0004565,17]
[321384052,1712110245550,-157.53536455,0.00045755,28]
[321384053,1712110245560,-152.13336314,0.00045777,69]
[321384054,1712110245569,-12287.68134233,0.00045815,10]
[321384055,1712110245579,-150.0,0.00045854,2]
[321384056,1712110245589,-3200.0,0.00046,4]
[321384057,1712110245601,-3248.72636107,0.00046,90]
[321384058,1712110245612,-1063.9,0.00046247,15]
[321384059,1712110245621,-152.0,0.00046453,9]
[321384060,1712110245631,-2655.0,0.000466,2]
[321384061,1712110245645,-970.32,0.00046699,2]
[321384062,1712110245655,-361.22,0.00046701,120]
[321384063,1712110245665,-150.0,0.0004672,2]
[321384064,1712110245675,-1013.8,0.000468,7]
[321384065,1712110245685,-1196.0,0.00046858,2]
[321384066,1712110245695,-43082.0,0.00046858,2]
[321384067,1712110245705,-150.0,0.00046858,2]
[321384068,1712110245714,-1100.0,0.00047,3]
[321384069,1712110245724,-261.62135738,0.00047,2]
[321384070,1712110245734,-500.0,0.00047155,30]
[321384071,1712110245744,-1015.0,0.000472,7]
[321384072,1712110245756,-152.0,0.00047272,10]
[321384073,1712110245765,-301.468,0.00047275,2]
[321384074,1712110245775,-206.0,0.00047275,2]
[321384075,1712110245788,-214.0,0.00047275,2]
[321384076,1712110245798,-150.0,0.00047585,2]
[321384077,1712110245807,-656.0,0.000478,120]
[321384078,1712110245817,-243.812345,0.000478,25]
[321384079,1712110245827,-392.200373,0.000478,25]
[321384080,1712110245837,-4776.6577,0.000479,2]
[321384082,1712110245847,-290.25,0.00047945,2]
[321384083,1712110245863,-151.0,0.00048,120]
[321384084,1712110245873,-392.200373,0.00048,25]
[321384085,1712110245882,-5510.02581428,0.00048,2]
[321384086,1712110245892,-981.0493,0.00048019,2]
[321384087,1712110245902,-1000.0,0.00048019,2]
[321384088,1712110245911,-152.0,0.00048092,11]
[321384089,1712110245920,-23618.02506248,0.00048119,7]
[321384090,1712110245928,-3373.03554017,0.000484,2]
[321384091,1712110245938,-150.0,0.0004845,2]
[321384092,1712110245948,-150.0,0.0004848,7]
[321384093,1712110245957,-150.0,0.00048497,7]
[321384094,1712110245966,-377.02,0.000485,7]
[321384095,1712110245975,-1000.0,0.000485,7]
[321384096,1712110245985,-150.0,0.00048561,7]
[321384097,1712110245994,-150.0,0.00048563,7]
[321384098,1712110246003,-150.0,0.00048568,7]
[321384099,1712110246012,-150.0,0.00048581,7]
[321384100,1712110246021,-150.0,0.00048596,7]
[321384101,1712110246030,-1777.2,0.000486,7]
[321384102,1712110246039,-1189.49844511,0.00048629,20]
[321384103,1712110246049,-150.0,0.0004863,7]
[321384104,1712110246058,-150.0,0.0004865,7]
[321384105,1712110246067,-150.0,0.00048653,7]
[321384106,1712110246077,-150.0,0.00048664,7]
[321384107,1712110246086,-150.0,0.0004868,7]
[321384108,1712110246095,-150.0,0.00048683,7]
[321384109,1712110246108,-16768.09825731,0.000487,2]
[321384110,1712110246118,-1070.0,0.000487,117]
[321384111,1712110246127,-150.0,0.00048701,7]
[321384112,1712110246190,-150.0,0.00048702,7]
[321384113,1712110246199,-915.57841221,0.0004871,120]
[321384114,1712110246209,-150.0,0.00048715,7]
[321384115,1712110246218,-150.0,0.00048728,7]
[321384116,1712110246227,-150.0,0.00048729,7]
[321384117,1712110246236,-152.13336314,0.00048759,79]
[321384118,1712110246245,-150.0,0.0004876,7]
[321384119,1712110246254,-150.0,0.00048762,7]
[321384120,1712110246264,-1500.0,0.00048817,7]
[321384121,1712110246274,-500.0,0.00048818,7]
[321384122,1712110246283,-500.0,0.00048818,7]
[321384123,1712110246292,-500.0,0.00048818,7]
[321384124,1712110246301,-500.0,0.00048818,7]
[321384125,1712110246311,-500.0,0.00048818,7]
[321384126,1712110246320,-500.0,0.00048818,7]
[321384127,1712110246330,-500.0,0.00048818,7]
[321384128,1712110246339,-500.0,0.00048818,7]
[321384129,1712110246350,-500.0,0.00048818,7]
[321384130,1712110246359,-500.0,0.00048818,7]
[321384131,1712110246368,-500.0,0.00048818,7]
[321384132,1712110246377,-500.0,0.00048818,7]
[321384133,1712110246386,-500.0,0.00048818,7]
[321384134,1712110246395,-500.0,0.00048818,7]
[321384135,1712110246404,-500.0,0.00048818,7]
[321384136,1712110246414,-500.0,0.00048818,7]
[321384137,1712110246423,-500.0,0.00048818,7]
[321384138,1712110246432,-500.0,0.00048818,7]
[321384139,1712110246441,-500.0,0.00048818,7]
[321384140,1712110246449,-500.0,0.00048818,7]
[321384141,1712110246458,-500.0,0.00048818,7]
[321384142,1712110246467,-500.0,0.00048818,7]
[321384143,1712110246476,-585.78,0.00048818,7]
[321384144,1712110246485,-500.0,0.00048818,7]
[321384145,1712110246494,-500.0,0.00048818,7]
[321384146,1712110246504,-500.0,0.00048818,7]
[321384147,1712110246515,-500.0,0.00048818,7]
[321384148,1712110246524,-500.0,0.00048818,7]
[321384149,1712110246534,-500.0,0.00048818,7]
[321384150,1712110246543,-500.0,0.00048818,7]
[321384151,1712110246552,-500.0,0.00048818,7]
[321384152,1712110246561,-500.0,0.00048818,7]
[321384153,1712110246570,-500.0,0.00048818,7]
[321384154,1712110246579,-500.0,0.00048818,7]
[321384155,1712110246587,-500.0,0.00048818,7]
[321384156,1712110246598,-500.0,0.00048818,7]
[321384157,1712110246607,-500.0,0.00048818,7]
[321384158,1712110246616,-500.0,0.00048818,7]
[321384159,1712110246625,-500.0,0.00048818,7]
[321384160,1712110246634,-500.0,0.00048818,7]
[321384161,1712110246643,-500.0,0.00048818,7]
[321384162,1712110246652,-500.0,0.00048818,7]
[321384163,1712110246661,-500.0,0.00048818,7]
[321384164,1712110246670,-500.0,0.00048818,7]
[321384165,1712110246679,-500.0,0.00048818,7]
[321384166,1712110246689,-500.0,0.00048818,7]
[321384167,1712110246699,-500.0,0.00048818,7]
[321384168,1712110246709,-500.0,0.00048818,7]
[321384169,1712110246719,-500.0,0.00048818,7]
[321384170,1712110246730,-500.0,0.00048818,7]
[321384171,1712110246738,-500.0,0.00048818,7]
[321384172,1712110246747,-500.0,0.00048818,7]
[321384173,1712110246757,-500.0,0.00048818,7]
[321384174,1712110246766,-500.0,0.00048818,7]
[321384175,1712110246775,-456.94,0.00048818,7]
[321384176,1712110246786,-150.0,0.00048818,7]
[321384177,1712110246795,-150.0,0.00048828,7]
[321384178,1712110246805,-150.0,0.00048837,7]
[321384179,1712110246816,-150.0,0.00048853,7]
[321384180,1712110246826,-150.0,0.00048858,7]
[321384181,1712110246836,-1000.0,0.00048859,7]
[321384182,1712110246845,-1000.0,0.00048859,7]
[321384183,1712110246856,-1000.0,0.00048859,7]
[321384184,1712110246865,-1000.0,0.00048859,7]
[321384185,1712110246876,-1000.0,0.00048859,7]
[321384186,1712110246886,-1000.0,0.00048859,7]
[321384187,1712110246895,-1000.0,0.00048859,7]
[321384188,1712110246905,-1000.0,0.00048859,7]
[321384189,1712110246915,-1000.0,0.00048859,7]
[321384190,1712110246924,-1000.0,0.00048859,7]
[321384191,1712110246933,-1000.0,0.00048859,7]
[321384192,1712110246942,-1000.0,0.00048859,7]
[321384193,1712110246951,-1000.0,0.00048859,7]
[321384194,1712110246960,-1000.0,0.00048859,7]
[321384195,1712110246969,-1000.0,0.00048859,7]
[321384196,1712110246978,-1000.0,0.00048859,7]
[321384197,1712110246987,-1000.0,0.00048859,7]
[321384198,1712110246996,-1000.0,0.00048859,7]
[321384199,1712110247006,-1000.0,0.00048859,7]
[321384200,1712110247015,-1000.0,0.00048859,7]
[321384201,1712110247024,-1000.0,0.00048859,7]
[321384202,1712110247033,-1000.0,0.00048859,7]
[321384203,1712110247042,-1000.0,0.00048859,7]
[321384204,1712110247051,-1000.0,0.00048859,7]
[321384205,1712110247060,-1000.0,0.00048859,7]
[321384206,1712110247069,-1000.0,0.00048859,7]
[321384207,1712110247078,-1000.0,0.00048859,7]
[321384208,1712110247087,-1000.0,0.00048859,7]
[321384209,1712110247099,-1000.0,0.00048859,7]
[321384210,1712110247109,-1000.0,0.00048859,7]
[321384211,1712110247118,-1000.0,0.00048859,7]
[321384212,1712110247127,-1000.0,0.00048859,7]
[321384213,1712110247136,-1000.0,0.00048859,7]
[321384214,1712110247145,-1000.0,0.00048859,7]
[321384215,1712110247154,-1000.0,0.00048859,7]
[321384216,1712110247164,-1000.0,0.00048859,7]
[321384217,1712110247173,-1000.0,0.00048859,7]
[321384218,1712110247182,-1000.0,0.00048859,7]
[321384219,1712110247195,-1000.0,0.00048859,7]
[321384220,1712110247205,-1000.0,0.00048859,7]
[321384221,1712110247215,-1000.0,0.00048859,7]
[321384222,1712110247225,-1000.0,0.00048859,7]
[321384223,1712110247235,-1000.0,0.00048859,7]
[321384224,1712110247244,-1000.0,0.00048859,7]
[321384225,1712110247255,-1000.0,0.00048859,7]
[321384226,1712110247264,-1000.0,0.00048859,7]
[321384227,1712110247274,-1000.0,0.00048859,7]
[321384228,1712110247283,-1000.0,0.00048859,7]
[321384229,1712110247292,-1000.0,0.00048859,7]
[321384230,1712110247301,-1000.0,0.00048859,7]
[321384231,1712110247310,-1000.0,0.00048859,7]
[321384232,1712110247319,-1000.0,0.00048859,7]
[321384233,1712110247328,-1000.0,0.00048859,7]
[321384234,1712110247337,-1000.0,0.00048859,7]
[321384235,1712110247348,-1000.0,0.00048859,7]
[321384236,1712110247358,-1000.0,0.00048859,7]
[321384237,1712110247368,-1000.0,0.00048859,7]
[321384238,1712110247377,-1000.0,0.00048859,7]
[321384239,1712110247386,-1000.0,0.00048859,7]
[321384240,1712110247395,-1000.0,0.00048859,7]
[321384241,1712110247404,-1000.0,0.00048859,7]
[321384242,1712110247413,-1000.0,0.00048859,7]
[321384243,1712110247423,-1000.0,0.00048859,7]
[321384244,1712110247433,-1000.0,0.00048859,7]
[321384245,1712110247442,-1000.0,0.00048859,7]
[321384246,1712110247451,-1000.0,0.00048859,7]
[321384247,1712110247460,-1000.0,0.00048859,7]
[321384248,1712110247474,-1000.0,0.00048859,7]
[321384249,1712110247484,-1000.0,0.00048859,7]
[321384250,1712110247493,-1000.0,0.00048859,7]
[321384251,1712110247502,-1000.0,0.00048859,7]
[321384252,1712110247512,-1000.0,0.00048859,7]
[321384253,1712110247521,-1000.0,0.00048859,7]
[321384254,1712110247532,-1000.0,0.00048859,7]
[321384255,1712110247541,-1000.0,0.00048859,7]
[321384256,1712110247551,-1000.0,0.00048859,7]
[321384257,1712110247561,-1000.0,0.00048859,7]
[321384258,1712110247570,-1000.0,0.00048859,7]
[321384259,1712110247579,-1000.0,0.00048859,7]
[321384260,1712110247588,-1000.0,0.00048859,7]
[321384261,1712110247599,-1000.0,0.00048859,7]
[321384262,1712110247609,-1000.0,0.00048859,7]
[321384263,1712110247618,-1000.0,0.00048859,7]
[321384264,1712110247628,-1000.0,0.00048859,7]
[321384265,1712110247638,-1000.0,0.00048859,7]
[321384266,1712110247647,-1000.0,0.00048859,7]
[321384267,1712110247657,-1000.0,0.00048859,7]